Workbook

Sheet Datos de la Empresa
D6: Nombre de la Empresa: | G6: Impresiones digitales
D9: Nombre del Puesto: | G9: Director

Sheet Valuación por Puntos
C1: Habilidades.
C3: Nivel de Preparación | E3: Experiencia
B5: 16
C7: Toma de Decisiones:
B9: =VLOOKUP(A10,H16:J20,3) -> 6
A10: 4
D11: Puntos Totales: | F11: =VLOOKUP(B5,A18:G37,B9) -> 740
B16: Nivel de Preparación y Experiencia | C16: Toma de Decisiones | H16: 1 | I16: Grado I | J16: 3
C17: I | D17: II | E17: III | F17: IV | G17: V | H17: 2 | I17: Grado II | J17: 4
A18: 1 | B18: 1) Primaria o elemental a) De 0 hasta 6 meses | C18: 25 | D18: 38 | E18: 59 | F18: 90 | G18: 138 | H18: 3 | I18: Grado III | J18: 5
A19: 2 | B19: 1) Primaria o elemental b) De 6 hasta 1 año | C19: 29 | D19: 44 | E19: 68 | F19: 104 | G19: 159 | H19: 4 | I19: Grado IV | J19: 6
A20: 3 | B20: 1) Primaria o elemental c) De 1 a 2 años | C20: 33 | D20: 51 | E20: 78 | F20: 120 | G20: 183 | H20: 5 | I20: Grado V | J20: 7
A21: 4 | B21: 2) Secundaria u oficio a) De 0 hasta 1 año | C21: 38 | D21: 59 | E21: 90 | F21: 138 | G21: 210
A22: 5 | B22: 2) Secundaria u oficio b) De 1 hasta 2 años | C22: 44 | D22: 68 | E22: 104 | F22: 159 | G22: 242
A23: 6 | B23: 2) Secundaria u oficio c) De 2 a 3 años | C23: 51 | D23: 78 | E23: 120 | F23: 183 | G23: 278
A24: 7 | B24: 3) Bachillerato o carrera técnica a) De 0 hasta 1 año | C24: 59 | D24: 90 | E24: 138 | F24: 210 | G24: 320
A25: 8 | B25: 3) Bachillerato o carrera técnica b) De 1 hasta 2 años | C25: 68 | D25: 104 | E25: 159 | F25: 242 | G25: 368
A26: 9 | B26: 3) Bachillerato o carrera técnica c) De 3 o más años | C26: 78 | D26: 120 | E26: 183 | F26: 278 | G26: 423
A27: 10 | B27: 4) Licenciatura a) De 0 o más de 6 meses | C27: 90 | D27: 138 | E27: 210 | F27: 320 | G27: 486
A28: 11 | B28: 4) Licenciatura b) De 6 meses hasta 1 año | C28: 104 | D28: 159 | E28: 242 | F28: 368 | G28: 560
A29: 12 | B29: 4) Licenciatura c) De 1 hasta 3 años | C29: 120 | D29: 183 | E29: 278 | F29: 423 | G29: 644
A30: 13 | B30: 5) Licenciatura especializada a) De 3 hasta 4 años | C30: 138 | D30: 210 | E30: 320 | F30: 486 | G30: 740
A31: 14 | B31: 5) Licenciatura especializada b) De 4 hasta 5 años | C31: 159 | D31: 242 | E31: 368 | F31: 560 | G31: 851
A32: 15 | B32: 5) Licenciatura especializada c) De 5 o más años | C32: 183 | D32: 278 | E32: 423 | F32: 644 | G32: 979
A33: 16 | B33: 6) Maestría a) Menos de 5 años | C33: 210 | D33: 320 | E33: 486 | F33: 740 | G33: 1126
A34: 17 | B34: 6) Maestría b) Más de 5 años | C34: 242 | D34: 368 | E34: 560 | F34: 851 | G34: 1295
A35: 18 | B35: 7) Doctorado a) Menos de 5 años | C35: 278 | D35: 423 | E35: 644 | F35: 979 | G35: 1489
A36: 19 | B36: 7) Doctorado b) Más de 5 años | C36: 320 | D36: 486 | E36: 740 | F36: 1261 | G36: 1712
A37: 20 | B37: 7) Doctorado c) Indeterminado | C37: 368 | D37: 560 | E37: 851 | F37: 1295 | G37: 1970
C40: Responsabilidad.
C41: Valores
C42: Volumen de Valores Valor
C46: Rango de Afectación:
D50: Puntos Parciales: | F50: =VLOOKUP(J57,A53:H66,J59) -> 287
C51: Volumen de valores (millones de pesos) | D51: Rango de afectación | J51: 1 | K51: Rango de Afectación I | L51: 4
D52: I | E52: II | F52: III | G52: IV | H52: V | J52: 2 | K52: Rango de Afectación II | L52: 5
A53: 1 | C53: A. Indeterminado o menor a $ 1 Valor 1 | D53: 40 | E53: 59 | F53: 87 | G53: 130 | H53: 194 | J53: 3 | K53: Rango de Afectación III | L53: 6
A54: 2 | C54: A. Indeterminado o menor a $ 1 Valor 2 | D54: 46 | E54: 67 | F54: 100 | G54: 148 | H54: 221 | J54: 4 | K54: Rango de Afectación IV | L54: 7
A55: 3 | C55: B. De $1 a menor de $10 Valor 1 | D55: 52 | E55: 76 | F55: 114 | G55: 170 | H55: 252 | J55: 5 | K55: Rango de Afectación V | L55: 8
A56: 4 | C56: B. De $1 a menor de $10 Valor 2 | D56: 59 | E56: 87 | F56: 130 | G56: 194 | H56: 287
A57: 5 | C57: C. De $10 a menor de $100 Valor 1 | D57: 67 | E57: 100 | F57: 148 | G57: 221 | H57: 327 | J57: 7
A58: 6 | C58: C. De $10 a menor de $100 Valor 2 | D58: 76 | E58: 114 | F58: 170 | G58: 252 | H58: 373 | J58: 4
A59: 7 | C59: D. De $100 a menor de $1,000 Valor 1 | D59: 87 | E59: 130 | F59: 194 | G59: 287 | H59: 425 | J59: =VLOOKUP(J58,J51:L55,3) -> 7
A60: 8 | C60: D. De $100 a menor de $1,000 Valor 2 | D60: 100 | E60: 148 | F60: 221 | G60: 327 | H60: 485
A61: 9 | C61: E. De $1,000 a menor de $10,000 Valor 1 | D61: 114 | E61: 170 | F61: 252 | G61: 373 | H61: 553
A62: 10 | C62: E. De $1,000 a menor de $10,000 Valor 2 | D62: 130 | E62: 194 | F62: 287 | G62: 425 | H62: 630
A63: 11 | C63: F. De $10,000 a menor de $100,000 Valor 1 | D63: 148 | E63: 221 | F63: 327 | G63: 485 | H63: 718
A64: 12 | C64: F. De $10,000 a menor de $100,000 Valor 2 | D64: 170 | E64: 252 | F64: 373 | G64: 553 | H64: 819
A65: 13 | C65: G. De $100,000 a menor de $1,000,000 Valor 1 | D65: 194 | E65: 287 | F65: 425 | G65: 630 | H65: 933
A66: 14 | C66: G. De $100,000 a menor de $1,000,000 Valor 2 | D66: 221 | E66: 327 | F66: 485 | G66: 718 | H66: 1064
C67: Relaciones con Otros
C69: Límite u Opción de la Relación
C73: Tipo de Relación:
D76: Puntos Parciales: | F76: =VLOOKUP(J83,A80:H86,J85) -> 292
C78: Límite u oposición de las relaciones | D78: Tipo de relación | J78: 1 | K78: Tipo de Relación I | L78: 4
D79: I | E79: II | F79: III | G79: IV | H79: V | J79: 2 | K79: Tipo de Relación II | L79: 5
A80: 1 | C80: A. Interno | D80: 23 | E80: 36 | F80: 57 | G80: 77 | H80: 120 | J80: 3 | K80: Tipo de Relación III | L80: 6
A81: 2 | C81: B. Externo | D81: 27 | E81: 42 | F81: 66 | G81: 89 | H81: 139 | J81: 4 | K81: Tipo de Relación IV | L81: 7
A82: 3 | C82: C. Mixtas | D82: 31 | E82: 49 | F82: 77 | G82: 103 | H82: 161 | J82: 5 | K82: Tipo de Relación V | L82: 8
A83: 4 | C83: D. Normalmente sin oposición | D83: 36 | E83: 57 | F83: 89 | G83: 120 | H83: 187 | J83: 7
A84: 5 | C84: E. Críticas | D84: 42 | E84: 66 | F84: 103 | G84: 139 | H84: 217 | J84: 5
A85: 6 | C85: F. Oposición crítica | D85: 49 | E85: 77 | F85: 120 | G85: 161 | H85: 252 | J85: =VLOOKUP(J84,J78:L82,3) -> 8
A86: 7 | C86: G. Controversia | D86: 57 | E86: 89 | F86: 139 | G86: 187 | H86: 292
C87: Supervisión a Subordinados
C89: Número de Subordinados
C93: Tipo de Supervisión:
D96: Puntos Parciales: | F96: =VLOOKUP(J103,C101:I107,J105) -> 77
D98: Número de subordinados directos | E98: Tipo de supervisión | J98: 1 | K98: Grado I | L98: 3
E99: Grado | J99: 2 | K99: Grado II | L99: 4
E100: I | F100: II | G100: III | H100: IV | I100: V | J100: 3 | K100: Grado III | L100: 5
C101: 1 | D101: A. De 0 a 1 | E101: 20 | F101: 28 | G101: 39 | H101: 55 | I101: 77 | J101: 4 | K101: Grado IV | L101: 6
C102: 2 | D102: B. De 2 a 3 | E102: 24 | F102: 33 | G102: 46 | H102: 65 | I102: 91 | J102: 5 | K102: Grado V | L102: 7
C103: 3 | D103: C. De 4 a 5 | E103: 28 | F103: 39 | G103: 55 | H103: 77 | I103: 107 | J103: 5
C104: 4 | D104: D. De 6 a 7 | E104: 33 | F104: 46 | G104: 65 | H104: 91 | I104: 127 | J104: 3
C105: 5 | D105: E. De 8 a 10 | E105: 39 | F105: 55 | G105: 77 | H105: 107 | I105: 150 | J105: =J104+2 -> 5
C106: 6 | D106: F. De 10 a 15 | E106: 46 | F106: 65 | G106: 91 | H106: 127 | I106: 177
C107: 7 | D107: G. De 15 o más | E107: 55 | F107: 77 | G107: 107 | H107: 150 | I107: 210
C108: Puntos Totales: | E108: =+F96+F76+F50 -> 656
C111: Esfuerzo
C118: Esfuerzo Físico | D118: =IF(A129=2,"( Llenar esta parte, por favor)","(No llenar, por favor, pasar a esfuerzo mental)") -> (No llenar, por favor, pasar a esfuerzo mental)
C120: Precisión y Patrón de Movimientos
C124: Fuerza y Velocidad
D127: Puntos Opcionales: | F127: =VLOOKUP(A130,C131:I137,A132) -> 90
A129: 1 | D129: Precisión y patrón de movimiento | E129: Fuerza y Velocidad
A130: 1 | E130: I | F130: II | G130: III | H130: IV | I130: V
A131: 5 | C131: 1 | D131: A. Sencilla, sin precisión | E131: 15 | F131: 23 | G131: 37 | H131: 58 | I131: 90 | K131: Grado I
A132: =+A131+2 -> 7 | C132: 2 | D132: B. Sencilla, cierta precisión | E132: 17 | F132: 27 | G132: 43 | H132: 67 | I132: 104 | K132: Grado II
A133: 5 | C133: 3 | D133: C. Sencilla, con precisión | E133: 20 | F133: 31 | G133: 50 | H133: 78 | I133: 121 | K133: Grado III
A134: 4 | C134: 4 | D134: D. Normal | E134: 23 | F134: 37 | G134: 58 | H134: 90 | I134: 140 | K134: Grado IV
A135: =+A134+2 -> 6 | C135: 5 | D135: E. Compleja, con precisión | E135: 27 | F135: 43 | G135: 67 | H135: 104 | I135: 162 | K135: Grado V
C136: 6 | D136: F. Compleja, con amplia precisión | E136: 31 | F136: 50 | G136: 78 | H136: 121 | I136: 188
C137: 7 | D137: G. Compleja, con alta precisión | E137: 37 | F137: 58 | G137: 90 | H137: 140 | I137: 218
C139: Esfuerzo Mental | E139: =IF(A129=1,"(Llenar esta parte, porfavor)","(No llenar, porfavor, pasar a esfuerzo físico)") -> (Llenar esta parte, porfavor)
C140: Actividad Intelectual
C144: Complejidad:
D147: Puntos Opcionales: | F147: =VLOOKUP(A133,C152:I158,A135) -> 574
D149: Matriz Factor Esfuerzo Mental o Solución de Problemas
D150: Actividad Mental | E150: Complejidad
E151: I | F151: II | G151: III | H151: IV | I151: V | K151: Grado I
C152: 1 | D152: 1. Rutina | E152: 58 | F152: 100 | G152: 170 | H152: 286 | I152: 482 | K152: Grado II
C153: 2 | D153: 2. Semi-rutina | E153: 70 | F153: 119 | G153: 202 | H153: 340 | I153: 574 | K153: Grado III
C154: 3 | D154: 3. Semi-delimitado | E154: 83 | F154: 142 | G154: 240 | H154: 405 | I154: 683 | K154: Grado IV
C155: 4 | D155: 4. Delimitado | E155: 100 | F155: 170 | G155: 286 | H155: 482 | I155: 815 | K155: Grado V
C156: 5 | D156: 5. Definido | E156: 119 | F156: 202 | G156: 340 | H156: 574 | I156: 970
C157: 6 | D157: 6. Medianamente definido | E157: 142 | F157: 240 | G157: 405 | H157: 683 | I157: 1155
C158: 7 | D158: 7. Definido en forma general | E158: 170 | F158: 286 | G158: 482 | H158: 815 | I158: 1375
C159: Puntos Totales: | E159: =IF(A129=1,F127,F147) -> 90
C161: Condiciones de Trabajo.
C163: Riesgo de Accidentes
C167: Medio Ambiente:
D170: Puntos Totales: | F170: =VLOOKUP(A174,C174:I180,A176) -> 24
D171: Matriz del factor condiciones de trabajo
D172: Riesgo de accidentes | E172: Medio Ambiente
E173: I | F173: II | G173: III | H173: IV | I173: V
A174: 1 | C174: 1 | D174: A. Nulo | E174: 24 | F174: 39 | G174: 64 | H174: 106 | I174: 175 | K174: Grado I
A175: 1 | C175: 2 | D175: B. Poco | E175: 28 | F175: 46 | G175: 76 | H175: 125 | I175: 207 | K175: Grado II
A176: =+A175+2 -> 3 | C176: 3 | D176: C. Esporádico | E176: 33 | F176: 54 | G176: 90 | H176: 118 | I176: 244 | K176: Grado III
C177: 4 | D177: D. Moderado | E177: 39 | F177: 64 | G177: 106 | H177: 175 | I177: 288 | K177: Grado IV
C178: 5 | D178: E. Regular | E178: 46 | F178: 76 | G178: 125 | H178: 207 | I178: 340 | K178: Grado V
C179: 6 | D179: F. Frecuente | E179: 54 | F179: 90 | G179: 118 | H179: 244 | I179: 401
C180: 7 | D180: G. Constante | E180: 64 | F180: 106 | G180: 175 | H180: 288 | I180: 470
C183: Total de Puntos Obtenidos de la Valuación por el Método FORELA | F183: =F11+E108+E159+F170 -> 1510

Sheet Resúmen
A1: =Empresa -> Impresiones digitales
A4: Valuación del Puesto: | C4: =Puesto -> Director | D4: por medio del Método FORELA.
A7: Gracias a los datos que nos fueron proporcionados, los puntajes resultaron como sigue:
A9: Factor | C9: Parcial | D9: Puntos | E9: Porcentaje
A10: Habilidades | D10: ='Valuación por Puntos'!F11 -> 740 | E10: =D10/$D$19 -> 0.37111334
A11: Responsabilidad
A12: Valores | C12: ='Valuación por Puntos'!F50 -> 287
A13: Relaciones con otros | C13: ='Valuación por Puntos'!F76 -> 292
A14: Supervisión a Subordinados | C14: =+'Valuación por Puntos'!F96 -> 77 | D14: =SUM(C12:C14) -> 656 | E14: =D14/$D$19 -> 0.3289869609
A15: Esfuerzo
A16: Físico | C16: =IF(Esfuerzo=2,'Valuación por Puntos'!F127,0) -> 0
A17: Intelectual | C17: =IF(Esfuerzo=1,'Valuación por Puntos'!F147,0) -> 574 | D17: =SUM(C16:C17) -> 574 | E17: =D17/$D$19 -> 0.2878635908
A18: Condiciones de Trabajo | D18: ='Valuación por Puntos'!F170 -> 24 | E18: =D18/$D$19 -> 0.01203610832
D19: =SUM(D10:D18) -> 1994 | E19: =SUM(E10:E18) -> 1
A21: Por ello, su perfil estándar es el siguiente:
A23: Habilidades | B23: =+E10 -> 0.37111334
A24: Responsabilidad | B24: =+E14 -> 0.3289869609
A25: Esfuerzo | B25: =+E17 -> 0.2878635908
A26: Condiciones de Trabajo | B26: =+E18 -> 0.01203610832
A29: Gráficamente se podría explicar así:

Sheet Habilidades
A1: Habilidades
A3: Nivel de Preparación:
B5: 1) Primaria elemental.
C6: Conjunto de conocimientos mínimos adquiridos en la enseñanza primaria o, en su defecto, aptitudes para realizar tareas que requieren habilidades manuales; por ejemplo: auxiliar de taller, aseador, barrendero, etcétera.
B8: 2) Secundaria u oficio.
C9: Conjunto de conocimientos que se adquieren en la enseñanza media básica, o un oficio; por ejemplo: carpintero, herrero, plomero, etcétera.
B11: 3) Bachillerato o carrera técnica.
C12: Conocimientos adquiridos en la enseñanza media superior (preparatoria o vocacional), o en una carrera técnica; por ejemplo: secretaria, técnico radiólogo, técnico en radio, contador privado, etcétera.
B13: 4) Licenciatura.
C14: Conjunto de conocimientos de nivel superior o, en su defecto, la práctica muy desarrollada o altamente especializada de una carrera técnica; por ejemplo: contador público, ingeniero civil, ingeniero mecánico, ingeniero químico, actuario, licenciado en administración, licenciado en derecho, especialista en radio-telefonía, etcétera.
B15: 5) Licenciatura especializada.
C16: Conjunto de conocimientos que se adquieren con base en una formación profesional enfocada, dentro de una disciplina, a un área específica. Estos pueden adquirirse en cursos de especialización, en la práctica o en estudios elementales de nivel maestría; por ejemplo: licenciado en derecho con especialidad en legislación laboral, ingeniero químico con especialidad en metalurgia, licenciado en administración con especialidad en comercio exterior, contador público con especialidad en finanzas, etcétera.
B17: 6) Maestría.
C18: Conjunto de conocimientos que se adquieren en el nivel de postgrado y que comprenden el dominio de teorías, técnicas y principios en una disciplina, y de sus aplicaciones, logradas a través de una larga maduración en la práctica y/o formación profesional formal.
B19: 7) Doctorado.
C20: Conjunto de conocimientos que se adquieren a un nivel académico especial (doctorado), que requiere de un dominio excepcional en una o varias disciplinas.
D23: Regresar
A24: Experiencia:
B26: Se entiende como la experiencia, la práctica adquirida a través del tiempo en el desempeño de un puesto. Este subfactor se encuentra muy relacionado con el nivel de preparación, pues cuando un puesto requiera de mucha experiencia, puede llegar a elevarse a un nivel inmediato superior de preparación:
B28: De 0 a 6 meses.
C29: Experiencia poca o nula; su nivel de preparación equivale a la práctica.
B30: De 6 meses a 1 año.
C31: Experiencia suficiente para entender el medio y las consecuencias de las decisiones.
B32: De 1 año a 2 años
C33: Experiencia amplia para conocer gran número de situaciones similares y capacidad de adaptación a situaciones nuevas.
B34: De 2 a 3 años.
C35: Experiencia enriquecida por el manejo de numerosas condiciones y situaciones diferentes.
B36: De 3 a 5 años.
C37: Experiencia madura y objetiva para manejar y solucionar problemas nuevos de una o diferentes áreas.
B38: De 5 o más años.
C39: Experiencia de una alta madurez, capaz de resolver cualquier variable de toda la empresa o dependencia.
D41: Regresar
A45: Toma de Decisiones:
B47: Se entiende por toma de decisiones el tipo de apoyos que recibe un puesto para ejecutar acciones con el fin de dar solución a los problemas. Se tiene como base la siguiente guía de acción.
B48: Grado I.
C49: Instrucciones y órdenes. Son tareas netamente operativas, que no requieren más de un mínimo de criterio común para resolver problemas.
B50: Grado II.
C51: Manuales de operación. Son actividades que van encaminadas al manejo de máquinas o procesos simples. Cuentan con el apoyo de un manual de operación, y, en caso de un problema mayor, supone la intervención del jefe inmediato
B52: Grado III.
C53: Manuales Generales. Son funciones que requieren de un cierto grado de interpretación de procedimientos que van encaminados al logro de una meta.
B54: Grado IV.
C55: Políticas. Son funciones que requieren de interpretación y análisis de cursos de acción que son fijados por el jefe inmediato, y que van encaminadas al logro de un objetivo común en la empresa o dependencia. Se requiere conocer los principios, teoría, leyes, etc., de la materia.
B56: Grado V.
C57: Objetivos. Son un conjunto de funciones que requieren un grado de interpretación y análisis original, aun cuando el objeto en sí sea incierto.
D59: Regresar

Sheet Responsabilidad
A1: Responsabilidad
B3: Valores:
C4: En el análisis de puestos deberá indicarse en forma anualizada el volumen de valores que el puesto maneja. Por otra parte, cada rango de volumen de valores se encuentra a su vez dividido en dos partes, y para lograr la ubicación de este aspecto del puesto que se valora deberá hacerse una simple interpolación; si el volumen de valores que maneja el puesto es menor o igual que la mitad del rango se elegirá el valor uno; si es superior que la mitad del rango se elegirá el valor dos.
C5: En el primer rango se menciona la palabra indeterminado que significa que el puesto no tiene influencia directa sobre el resultado o no es claramente medible.
D7: Regresar
A9: Rango de Afectación:
B10: Este segundo aspecto indica el grado de incidencia o impacto que tiene el puesto sobre el volumen de valores que maneja, y se encuentra subdividido en 5 rangos:
B11: Grado I.
C12: Mínimo. Significa que el puesto no tiene ninguna injerencia directa en la obtención o producción del volumen de valores; sin embargo, las actividades del puesto van orientadas a prestar servicios de información, registros, etcétera.
B13: Grado II.
C14: Custodia. Indica que el puesto tiene la responsabilidad de custodiar o recaudar el volumen de valores, ya sea en forma temporal o permanente, y es auditado constantemente.
B15: Grado III.
C16: Asesoría. Indica que el puesto colabora con otros para la obtención, producción o aplicación de valores, prestándoles asesoría, consulta, interpretación, etc., las decisiones pertenecen a otros puestos. Este grado es aplicable a los puestos que recaudan o custodian el volumen de valores, pero son auditados muy esporádicamente.
B17: Grado IV.
C18: Productor. Significa que el puesto junto con otros del mismo nivel es el productor del volumen de valores.
B19: Grado V.
C20: Directo. El puesto es el responsable directo de la obtención y producción del volumen de valores.
D22: Regresar
A24: Límite u opción de la Relación:
B25: Este aspecto indica el ámbito en el que el puesto tiene que desarrollar sus relaciones.
B27: a) Interno.
C28: Relaciones dentro de la empresa o dependencia.
B29: b) Externo.
C30: Relaciones con público (ajenos a la empresa o dependencia).
B31: c) Mixtas.
C32: Relaciones que requieren de mucha cortesía para atender personas principalmente ajenas a la empresa o dependencia; también es aplicable en forma interna (ventanillas y mostradores).
B33: d) Normalmente sin oposición.
C34: Relaciones sencillas que pueden ser internas o externas, que requieren de cierto tacto al realizarse.
B35: e) Criticas.
C36: Relaciones con oposición que es normalmente constructiva. Pueden ser internas o externas.
B37: f) Oposición critica.
C38: Relaciones que tienen dificultad en el grado de su aplicación, especialmente para convencer; son generalmente constructivas. Pueden ser internas y externas.
B39: g) Controversia.
C40: Relaciones que por su naturaleza tiene un alto grado de complejidad, pues requieren la conciliación de intereses. Pueden ser internas y externas.
D42: Regresar
A44: Tipo de Relación:
B45: Permite valorar el tipo de relación que se mantiene con otros:
B46: Grado I.
C47: Elementales. Avisar.
B48: Grado II.
C49: Sencillas. Recabar o tramitar información sencilla o datos simples.
B50: Grados III.
C51: Entendimiento. Lograr ser entendido por los interesados.
B52: Grado IV.
C53: Instruir. Obtener cooperación, instruir.
B54: Grado V.
C55: Convencer. Lograr modificar la conducta de otros, lograr acuerdos y resultados.
D57: Regresar
A59: Número de Subordinados:
B60: En el documento análisis del puesto deberá indicarse el número de personas que reportan directamente al puesto que se está valuando, en este punto no debe considerarse el número de puestos sino el número de ocupantes.
D62: Regresar
A64: Tipo de Supervisión:
B65: Se refiere al grado de apoyo que recibe de sus supervisores, de departamento que en cierta forma se encuentran involucrados.
B66: Grado I.
C67: Poca. Dar órdenes precisas y claras de la tarea a realizar, supervisar el avance o calidad del trabajo (aplicable a labores de tipo manual).
B68: Grado II.
C69: Limitada. Dar instrucciones del trabajo a realizar y supervisar el trabajo de cada parte o punto del proceso, aplicable a labores de oficina o labores manuales complejas).
B70: Grados III.
C71: Normal. Entrenar, motivar y guiar a los subordinados con amplio apoyo de otros.
B72: Grado IV.
C73: Guiada. Entrenar, motivar y guiar a los subordinados con poco apoyo de otros.
B74: Grado V.
C75: Compleja. Entrenar, motivar y guiar son condiciones obligadas; existe un alto grado de complejidad en los trabajos a realizar, y es necesario aplicar diversas formas de liderazgo; el apoyo de otros puestos es circunstancial y casi nulo.
D77: Regresar

Sheet Esfuerzo
A1: Esfuerzo
A3: Esfuerzo Físico:
B5: Precisión y Patrón de Movimientos:
C6: a) Sencilla y sin precisión.
D7: No se requiere de ningún patrón de movimientos, y éstos no suponen precisión (sólo la normal).
C8: b) Sencilla y con cierta precisión.
D9: Movimientos de una o varias partes del cuerpo; se requiere poca o ninguna coordinación. Existe cierta precisión en ellos.
C10: c) Sencilla con precisión.
D11: Movimientos de varias partes del cuerpo; se requiere un poco de coordinación. Existe precisión en los movimientos
C12: d) Normal.
D13: Movimientos simultáneos de varias partes del cuerpo; se requiere coordinación. Existe precisión en los movimientos.
C14: e) Compleja y con precisión.
D15: Movimiento simultáneo de varias partes del cuerpo; se requiere gran coordinación. Existe una amplia precisión de los movimientos.
C16: f) Compleja y con alta precisión.
D17: Movimientos simultáneos y opuestos del cuerpo; se requiere gran coordinación. Existe un alto grado de precisión en los movimientos.
C18: g) Compleja y con alta precisión.
D19: Movimientos simultaneos y opuestos del cuerpo; se requiere gran coordinación. Existe muy alto grado de precisión en los movimientos.
E22: Regresar
B24: Fuerza y Velocidad:
C25: Grado I.
D26: Mínima. No se requiere velocidad, y la fuerza empleada es mínima.
C27: Grado II.
D28: Pequeña. Apenas se requiere velocidad y ésta no es determinante; la fuerza empleada es normal.
C29: Grado III.
D30: Media. Se requiere de cierta velocidad y la fuerza empleada es normal.
C31: Grado IV.
D32: Grande. Se requiere de una alta velocidad, la fuerza empleada es intensa.
C33: Grado V.
D34: Alta. Se requiere una alta velocidad y la fuerza empleada es excesiva.
E36: Regresar
A39: Esfuerzo Mental o Solución de Problemas:
B40: Actividad Intelectual:
C41: a) Rutina.
D42: De actividad diaria. El puesto está perfectamente estandarizado.
C43: b) Semi-rutina.
D44: El puesto está estandarizado. Existen manuales de operación y normas específicas.
C45: c) Semi-delimitado.
D46: El puesto está semiestandarizado. Existen manuales y normas.
C47: d) Delimitado.
D48: Existen procedimientos generales. Hay antecedentes o guías para desempeñar el puesto.
C49: e) Definido.
D50: Los antecedentes o procedimientos no son muchos. La guía es política de procedimientos. Existen objetivos específicos de la función.
C51: f) Medianamente definido.
D52: Guías de acción amplias. Se asignan objetivos generales.
C53: g) Definido en forma general.
D54: Políticas muy generales, emitidas por las más altas autoridades.
E56: Regresar
B57: Complejidad:
C58: Grado I.
D59: Repetitiva. Requiere una capacidad de análisis limitada.
C60: Grado II.
D61: Establecida. Establece una cierta capacidad de análisis.
C62: Grado III.
D63: Interpolativa. Utilización mental promedio. Problemas de dificultad normal.
C64: Grado IV.
D65: Adaptativa. Frecuentes problemas de difícil solución. Se requiere ser sumamente analítico.
C66: Grado V.
D67: Creativo. Problemas muy difíciles o situaciones que requieren creatividad.
E69: Regresar

Sheet Condiciones de Trabajo
A1: Condiciones de Trabajo
A3: Riesgo de Accidentes:
B4: Se refiere al grado de adversidad del ambiente de trabajo a que se está expuesto normalmente y a los riesgos de accidentes o enfermedades.
B5: a) Nulo.
C6: El puesto no tiene exposición a situaciones inseguras.
B7: b) Poco.
C8: El puesto muy ocasionalmente se enfrenta a situaciones inseguras.
B9: c) Esporádico.
C10: El puesto ocasionalmente se enfrenta a situaciones inseguras: de 5% a 10% de la jornada total.
B11: d) Moderado.
C12: El puesto se enfrenta a situaciones inseguras o está expuesto a enfermedades propias del medio, pero su curación es sencilla: 11% a 20% de la jornada total.
B13: e) Regular.
C14: El puesto se enfrenta a situaciones inseguras o está expuesto a enfermedades epidémicas del medio 21% a 35% de la jornada total.
B15: f) Frecuente.
C16: El puesto se enfrenta frecuentemente a situaciones completamente difíciles y/o está expuesto a enfermedades profesionales de un 36% a un 60% de la jornada total.
B17: g) Constante.
C18: Por el tipo de trabajo se está expuesto constantemente a riesgos de accidentes y enfermedades.
D20: Regresar
A23: Medio Ambiente:
B24: Grado I.
C25: Normal. El trabajo se desarrolla en las oficinas en condiciones de amplitud, luminosidad, ventilación, etc., satisfactorias y normales.
B26: Grado II.
C27: Normal exterior. El trabajo se desarrolla en la calle y sólo existen los problemas normales del medio.
B28: Grado III.
C29: Deficiente interno. El trabajo se desarrolla en oficinas demasiado pobladas, con ruidos, malos olores y otros aspectos desagradables.
B30: Grado IV.
C31: Deficiente exterior. El trabajo exige el traslado a sitios lejanos y diversos, haciéndose desagradable e insalubre.
B32: Grado V.
C33: Adversa. El trabajo es desagradable, insalubre y peligroso, por diversas deficiencias ambientales, así como por riesgos mecánicos o físicos inevitables.
D35: Regresar
